Cogmind - Beta 14 @@@ ROGUE MODE // 2024.11.10 @ 17:55:55 Player: Fangrelle Result: Self-destructed Performance ------------- Evolutions (4) 2000 Regions Visited (5) 1000 Robots Destroyed (50) 250 Value Destroyed (1167) 1167 Prototype IDs (17) 340 Alien Tech Used (0) 0 Bonus (270) 270 TOTAL SCORE: 5027 Bonus ------- High Alert Combat Kills 10 Registered with UFD 300 Friendly Fire -40 Cogmind --------- Core Integrity 830/850 Matter 204/300 Energy 23/265 System Corruption 0% Temperature Cool (1) Movement Flying (60) Location -6/Factory Parts ------- > --- POWER (1) -------- Improved Ion Engine > --- PROPULSION (6) --- Improved Treads Nuclear Pulse Thruster > --- UTILITY (6) ------ Advanced Heat Sink Advanced Weight Redist. System Deep Structural Scanner Improved Reaction Control System Shield Generator Hacking Suite > --- WEAPON (2) ------- (None) > --- INVENTORY (5) ---- System Shield EMP Blaster Improved Datajack Vortex Trap Peak State ------------ > --- POWER ------------ Improved Ion Engine > --- PROPULSION ------- Light Treads Improved Treads Nuclear Pulse Thruster Nuclear Pulse Thruster > --- UTILITY ---------- Advanced Heat Sink Advanced Weight Redist. System Deep Structural Scanner Improved Reaction Control System Shield Generator Hacking Suite > --- WEAPON ----------- Greatsword > --- INVENTORY -------- System Shield EMP Blaster Improved Datajack Vortex Trap [Rating: 45] Favorites ----------- Power Improved Ion Engine Engine Improved Ion Engine Propulsion Light Treads Treads Light Treads Leg Aluminum Leg Wheel Wheel Flight Unit Nuclear Pulse Thruster Utility Humpback Device Shield Generator Storage Humpback Processor Targeting Computer Hackware Hacking Suite Protection Scrap Shield Weapon EMP Blaster Energy Gun Autobeam Ballistic Gun Autogun Launcher EMP Blaster Slashing Weapon Greatsword Build | -11 -10 -10 -9 -9 -6 ------- Run | Yrd Mat Sub Rec Scr Fac Slots Evolved 8 | . . . . . 8 Power . | . . . . . . Propulsion 4 | . . . . . 4 Utility 4 | . . . . . 4 Weapon . | . . . . . . Parts Attached 43 | . 12 11 3 6 11 Power 2 | . 1 . . 1 . Engine 2 | . 1 . . 1 . Core . | . . . . . . Reactor . | . . . . . . Propulsion 7 | . 2 . 1 2 2 Treads 4 | . 2 . . 2 . Leg . | . . . . . . Wheel 1 | . . . 1 . . Hover . | . . . . . . Flight 2 | . . . . . 2 Utility 15 | . 2 5 . 1 7 Device 6 | . . 1 . . 5 Storage 3 | . 1 1 . 1 . Processor 1 | . 1 . . . . Hackware 1 | . . . . . 1 Protection 4 | . . 3 . . 1 Artifact . | . . . . . . Weapon 19 | . 7 6 2 2 2 Energy Gun 2 | . . . 2 . . Energy Cannon . | . . . . . . Ballistic Gun 3 | . 3 . . . . Ballistic Cannon . | . . . . . . Launcher 12 | . 4 6 . 2 . Special Weapon . | . . . . . . Impact Weapon . | . . . . . . Slashing Weapon 2 | . . . . . 2 Piercing Weapon . | . . . . . . Special Melee Weapon . | . . . . . . Unidentified Prototypes . | . . . . . . Corrupted Parts 2 | . . . 2 . . System Corruption 18 | . . . 18 . . Parts Lost 6 | . . 3 . . 3 Power . | . . . . . . Propulsion 3 | . . 1 . . 2 Utility . | . . . . . . Weapon 3 | . . 2 . . 1 Highest Loss Streak 3 | . . 1 . . 3 To Critical Strikes . | . . . . . . Average Slot Usage (%) 80 | . 99 73 74 84 58 Engine 13 | . 14 14 14 14 6 Treads 15 | . 28 16 14 15 13 Wheel 7 | . . . 3 12 . Storage 11 | . 16 4 14 13 2 Protection 2 | . . 9 . . . Energy Gun 9 | . . . . 18 . Launcher 17 | . 18 27 28 9 . Peak Build Rating 45 | . 12 15 19 23 45 Average Rating 16 | . 11 11 16 19 33 On Entrance 13 | 6 6 12 15 19 23 Naked Turns . | . . . . . . Heaviest Build 217 | 11 38 215 217 217 215 Greatest Support 43 | 20 40 40 20 43 43 Greatest Overweight (x) 21 | . . 10 21 21 4 Average Overweight (x) 10 | . . 1 15 18 . Largest Inventory Capacity 35 | . 15 35 35 35 35 Average Capacity 28 | . 14 13 35 34 14 Most Carried 35 | . 15 27 35 35 35 Average Carried 25 | . 14 8 31 33 13 Final Capacity 35 | 8 15 35 35 35 5 Final Carried 35 | 6 15 27 35 35 4 Class Distribution -------------------- 75% | Hauler-Mutant 24% | Mutant Dominant Class ---------------- Mutant | -10/Materials Mutant | -10/Subcaves Hauler-Mutant | -9/Recycling Hauler-Mutant | -9/Scraptown Mutant | -6/Factory Resources | -11 -10 -10 -9 -9 -6 ----------- Run | Yrd Mat Sub Rec Scr Fac Matter Collected 1749 | 200 476 810 174 70 19 Remotely . | . . . . . . Salvage Created 1777 | . 844 884 . . 49 Parts 114 | . 57 51 . . 6 Haulers Intercepted 2 | . 2 . . . . Recyclers Shooed . | . . . . . . Parts Field Recycled . | . . . . . . Retrieved Matter . | . . . . . . Parts Self-Destructed 19 | . . 19 . . . Prevented 8 | . . 8 . . . Kills | -11 -10 -10 -9 -9 -6 ------- Run | Yrd Mat Sub Rec Scr Fac Combat Hostiles Destroyed 36 | . 16 20 . . . Guns 9 | . 9 . . . . AOE 25 | . 7 18 . . . Classes Destroyed 12 | . 8 4 . . . Worker 1 | . 1 . . . . Tunneler 2 | . 2 . . . . Hauler 2 | . 2 . . . . Recycler 1 | . 1 . . . . Operator 3 | . 1 . . . 2 Turret 2 | . . 2 . . . Watcher 3 | . 3 . . . . Swarmer 16 | . 9 7 . . . Grunt 8 | . 7 1 . . . Artisan 1 | . . 1 . . . Cobbler 2 | . . 2 . . . Subdweller 12 | . . 12 . . . Best Kill Streak 7 | . 7 4 . . 1 Combat Bots Only 5 | . 5 4 . . . Max Kills in Single Turn 2 | . 2 1 . . 1 Gunslinging . | . . . . . . Exploded 2 | . 2 1 . . . Melee . | . . . . . . Uniques/NPCs Destroyed . | . . . . . . Combat | -11 -10 -10 -9 -9 -6 -------- Run | Yrd Mat Sub Rec Scr Fac Hostile Shots Fired 199 | . 82 89 . . 28 Missed 74 | . 23 37 . . 14 Damage Taken 1521 | . 517 745 . . 259 Core 156 | . 84 52 . . 20 Absorbed by Shields 15 | . . . . . 15 Core Remaining (%) 72 | 100 . . . 45 . Volleys Fired 122 | . 54 67 1 . . Largest 2 | . 2 2 2 . . Hottest 66 | . 66 66 66 . . Shots Fired 207 | . 105 100 2 . . Gun 72 | . 72 . . . . Cannon . | . . . . . . Launcher 135 | . 33 100 2 . . Special . | . . . . . . Kinetic 72 | . 72 . . . . Thermal . | . . . . . . Explosive 23 | . 3 20 . . . Electromagnetic 112 | . 30 80 2 . . Robot Hit Streak 11 | . 7 11 11 . . Robot Miss Streak 7 | . 7 3 . . . Penetration Max . | . . . . . . Secondary Targets 2 | . 2 . . . . Max Gunslinging Chain 1 | . 1 . . . . Shots Hit Robots 88 | . 47 36 2 . 3 Core Hits 66 | . 28 38 . . . Critical Kills . | . . . . . . Critical Parts Destroyed . | . . . . . . Critical Strikes . | . . . . . . Melee Attacks 6 | . . . . . 6 Impact . | . . . . . . Slashing 6 | . . . . . 6 Piercing . | . . . . . . Sneak Attacks 1 | . . . . . 1 Combat Hostiles . | . . . . . . Follow-up Attacks . | . . . . . . Damage Inflicted 3189 | . 1092 1816 49 . 232 Guns 661 | . 661 . . . . Cannons . | . . . . . . Explosions 2296 | . 431 1816 49 . . Melee 232 | . . . . . 232 Ramming . | . . . . . . Kinetic 661 | . 661 . . . . Thermal 117 | . . 117 . . . Explosive 458 | . 35 423 . . . Electromagnetic 1721 | . 396 1276 49 . . Impact . | . . . . . . Slashing 232 | . . . . . 232 Piercing . | . . . . . . Highest Corruption 18 | . . . 18 . . Average Corruption 15 | . . . 15 . . Corruption Purged . | . . . . . . Corruption Blocked . | . . . . . . Overload Shots . | . . . . . . Overflow Damage 180 | . 2 12 9 . 157 Projectiles . | . . . . . . Explosions 23 | . 2 12 9 . . Melee 157 | . . . . . 157 Knockbacks . | . . . . . . Impact . | . . . . . . Kinetic . | . . . . . . Secondary . | . . . . . . Self-Inflicted Damage 110 | . 18 92 . . . Shots 7 | . 3 4 . . . Rammed . | . . . . . . Targets Rammed . | . . . . . . Kicked . | . . . . . . Crushed . | . . . . . . Highest Temperature 45 | . 45 . 9 . . Average Temperature 10 | . 10 . 6 . . Received Heat Transfer 333 | . 72 162 . . 99 Siege Activations . | . . . . . . Robots Corrupted 3 | . . 3 . . . Combat Hostiles 2 | . . 2 . . . Parts Fried 12 | . 3 9 . . . Impact Corruptions . | . . . . . . Robots Melted . | . . . . . . Combat Hostiles . | . . . . . . Parts Melted . | . . . . . . Heat Transferred 100 | . . 100 . . . Parts Sabotaged . | . . . . . . Parts Stolen . | . . . . . . Parts Stripped . | . . . . . . Power Chain Reactions 6 | . 5 1 . . . Alert | -11 -10 -10 -9 -9 -6 ------- Run | Yrd Mat Sub Rec Scr Fac Peak Influence 435 | . 435 . 155 . 19 Initial 149 | . . . 149 . . Average 70 | . 252 . 24 . 10 Maximum Alert Level 2 | . 2 . . . . Low Security (%) 84 | . 23 . 100 . 100 Level 1 13 | . 65 . . . . Level 2 2 | . 11 . . . . Level 3 . | . . . . . . Level 4 . | . . . . . . Level 5 . | . . . . . . High Security . | . . . . . . Max Security . | . . . . . . Squads Dispatched 6 | . 4 . . . 2 Investigation 3 | . 3 . . . . Extermination . | . . . . . . Reinforcement 3 | . 1 . . . 2 Assault . | . . . . . . Garrison . | . . . . . . Intercept . | . . . . . . Searches Triggered . | . . . . . . Construction Impeded . | . . . . . . Haulers Reinforced . | . . . . . . Active Scanning Responses . | . . . . . . Cargo Convoy Interrupts . | . . . . . . Stealth | -11 -10 -10 -9 -9 -6 --------- Run | Yrd Mat Sub Rec Scr Fac Distress Signals . | . . . . . . Communications Jammed . | . . . . . . Distress Signals . | . . . . . . Times Spotted 58 | . 22 29 . . 7 Peak Tracking Total 7 | . 5 6 . . 7 Tactical Retreats 8 | . 2 6 . . . Traps | -11 -10 -10 -9 -9 -6 ------- Run | Yrd Mat Sub Rec Scr Fac Traps Triggered 5 | . 4 1 . . . Indirectly 5 | . 4 1 . . . Trap Hack Attempts . | . . . . . . Triggered . | . . . . . . Disarmed . | . . . . . . Reprogrammed . | . . . . . . Reused . | . . . . . . Traps Extracted . | . . . . . . Installed 4 | . . 4 . . . Triggered . | . . . . . . Most Traps Carried 3 | . . 1 . 3 2 Machines | -11 -10 -10 -9 -9 -6 ---------- Run | Yrd Mat Sub Rec Scr Fac Machines Disabled 12 | . 4 8 . . . Max in Single Turn 4 | . 2 4 . . . Machines Repaired . | . . . . . . Machines Dismantled . | . . . . . . Machines Sabotaged . | . . . . . . Overloaded Fab Kills . | . . . . . . Hacking | -11 -10 -10 -9 -9 -6 --------- Run | Yrd Mat Sub Rec Scr Fac Machines Accessed 29 | . 7 2 13 6 1 Terminals 11 | . 5 . 6 . . Fabricators . | . . . . . . Repair Stations . | . . . . . . Recycling Units 8 | . 2 . 5 . 1 Scanalyzers . | . . . . . . Garrison Access . | . . . . . . Total Hacks 119 | . 24 4 49 38 4 Successful 100 | . 11 4 43 38 4 Failed 18 | . 12 . 6 . . Catastrophic 2 | . 2 . . . . Database Lockouts 1 | . 1 . . . . Manual 48 | . 23 . 21 . 4 Terminals 31 | . 15 . 16 . . Fabricators . | . . . . . . Repair Stations . | . . . . . . Recycling Units 22 | . 9 . 9 . 4 Scanalyzers . | . . . . . . Garrison Access . | . . . . . . Terminal Hacks 72 | . 1 4 29 38 . Record 64 | . . 3 24 37 . Robot Analysis 1 | . 1 . . . . Zone Layout 5 | . . . 5 . . Derelict Proto ID Bank 2 | . . 1 . 1 . Fabricator Hacks . | . . . . . . Repair Station Hacks . | . . . . . . Recycling Unit Hacks 5 | . 1 . 4 . . Report Inventory 5 | . 1 . 4 . . Scanalyzer . | . . . . . . Garrison Access Hacks . | . . . . . . Unauthorized Hacks 23 | . 9 . 10 . 4 Terminals 9 | . 4 . 5 . . Botnet 8 | . 3 . 5 . . Operators 1 | . 1 . . . . Fabricators . | . . . . . . Repair Stations . | . . . . . . Recycling Units 14 | . 5 . 5 . 4 Monitor 2 | . 1 . . . 1 Reject 2 | . 1 . . . 1 Recyclers 2 | . 1 . . . 1 Mask 2 | . 1 . . . 1 Tunnel 6 | . 1 . 5 . . Scanalyzers . | . . . . . . Garrison Access . | . . . . . . Data Cores Recovered . | . . . . . . Used . | . . . . . . Hacking Detections 13 | . 6 . 7 . . Full Trace Events 2 | . 2 . . . . Feedback Events . | . . . . . . Feedback Blocked . | . . . . . . Robot Schematics Acquired . | . . . . . . Robots Built . | . . . . . . Authchips . | . . . . . . Time . | . . . . . . Total Robot Build Rating . | . . . . . . Part Schematics Acquired . | . . . . . . Parts Built . | . . . . . . Authchips . | . . . . . . Time . | . . . . . . Total Part Build Rating . | . . . . . . Parts Repaired . | . . . . . . Time . | . . . . . . Parts Recycled . | . . . . . . Recycled Matter . | . . . . . . Retrieved Matter . | . . . . . . Retrieved Components . | . . . . . . Parts Scanalyzed . | . . . . . . Part Schematics Acquired . | . . . . . . Parts Damaged . | . . . . . . Bothacking | -11 -10 -10 -9 -9 -6 ------------ Run | Yrd Mat Sub Rec Scr Fac Used RIF Installer . | . . . . . . Robots Hacked . | . . . . . . Non-combat . | . . . . . . Combat . | . . . . . . Robot Hacks Applied . | . . . . . . Relay Couplers Released . | . . . . . . Fabnet Peak Effective % . | . . . . . . Robots Rewired . | . . . . . . Allies Hacked . | . . . . . . Hacks Repelled . | . . . . . . Allies | -11 -10 -10 -9 -9 -6 -------- Run | Yrd Mat Sub Rec Scr Fac Total Allies . | . . . . . . Largest Group . | . . . . . . Highest-Rated Group . | . . . . . . Highest-Rated Ally . | . . . . . . Total Orders . | . . . . . . Ally Attacks . | . . . . . . Total Damage . | . . . . . . Kills . | . . . . . . Allies Corrupted . | . . . . . . Allies Melted . | . . . . . . Intel | -11 -10 -10 -9 -9 -6 ------- Run | Yrd Mat Sub Rec Scr Fac Robot Analysis Total 1 | . 1 . . . . Derelict Logs Recovered 1 | . . 1 . . . Drone Launches . | . . . . . . Drone Recoveries . | . . . . . . Exploration | -11 -10 -10 -9 -9 -6 ------------- Run | Yrd Mat Sub Rec Scr Fac Turns Passed 26194 | . 1221 6729 4583 13477 184 Spaces Moved 7146 | 1 642 2229 668 3487 119 Core . | . . . . . . Treads 3473 | . 642 2229 342 250 10 Legs 1 | 1 . . . . . Wheels 3563 | . . . 326 3237 . Hover . | . . . . . . Flight 109 | . . . . . 109 Fastest Speed 60 | 120 160 160 395 95 60 Average Speed 350 | 120 160 266 684 384 112 Slowest Speed 960 | 120 160 960 960 480 480 Overloaded Moves . | . . . . . . Propulsion Burnouts . | . . . . . . Robots Hopped . | . . . . . . Cave-ins Triggered . | . . . . . . Exploration Rate (%) 53 | 1 67 63 92 94 4 Regions Visited 5 Branch Regions 3 Pre-discovered Areas 11 | . 1 2 5 3 . Known Exits Taken 1 | . . . . 1 . Unknown Exits Taken 4 | 1 1 1 1 . . Scrap Searched 14 | . . 4 . 10 . Spaces Dug 9 | . . 7 . . 2 Terrain Destroyed 150 | . 29 119 . . 2 Melee 2 | . . . . . 2 Projectile . | . . . . . . AOE 148 | . 29 119 . . . Terrain Rammed . | . . . . . . Walls Destroyed . | . . . . . . Machines Disabled . | . . . . . . Actions | -11 -10 -10 -9 -9 -6 --------- Run | Yrd Mat Sub Rec Scr Fac Total 8097 | . 750 2921 679 3585 162 Wait 567 | . . 562 . 3 2 Move 7141 | . 641 2228 667 3486 119 Hop . | . . . . . . Pick Up 123 | . 23 28 8 54 10 Fast Attach 17 | . 4 5 1 2 5 Attach 10 | . 2 2 . . 6 Detach 2 | . 2 . . . . Swap 16 | . 6 4 2 4 . Drop 82 | . 18 14 . 36 14 Fire 122 | . 54 67 1 . . Melee 6 | . . . . . 6 Ram . | . . . . . . Kick . | . . . . . . Crush . | . . . . . . Escape Stasis . | . . . . . . Rewire . | . . . . . . Trap 4 | . . 4 . . . Miscellaneous 7 | . . 7 . . . Route ------- -11/Scrapyard -10/Materials (discovered 5 exits: [*Mat x3] / [*Min] / *Sub) -10/Subcaves (discovered 2 exits: [*Mat] / *Rec) -9/Recycling (discovered 2 exits: [*Fac] / *Scr) -9/Scraptown (discovered 2 exits: *Fac x2) -6/Factory (discovered 6 exits: Fac x2 / Low x2 / Ext x2) History --------- Turn | Location | Event 1 | -11/Scrapyard | Discovered new exit (range 0) 1 | -11/Scrapyard | Entered Materials 280 | -10/Materials | Discovered new exit (range 11) 314 | -10/Materials | Build established: Mutant 373 | -10/Materials | Discovered new exit (range 13) 568 | -10/Materials | Central database locked down 947 | -10/Materials | Discovered new exit (range 16) 1115 | -10/Materials | Discovered new exit (range 6) 1205 | -10/Materials | Discovered new exit (range 10) 1222 | -10/Materials | Entered Subcaves 1225 | -10/Subcaves | Shifting Twisted Machinery released Sub. Laser 1376 | -10/Subcaves | Disturbed a concealed Subdweller 1815 | -10/Subcaves | Shifting Twisted Machinery released Sub. Beam Cannon 1816 | -10/Subcaves | Shifting Twisted Machinery released Barrage Gun 1994 | -10/Subcaves | Shifting Twisted Machinery released Riot Gun 3037 | -10/Subcaves | Learned location of Zion (-7) 3037 | -10/Subcaves | Met a Zionite searching for "candidates" 3372 | -10/Subcaves | Discovered new exit (range 11) 3433 | -10/Subcaves | Shifting Twisted Machinery released Piercing Trap 3433 | -10/Subcaves | Shifting Twisted Machinery released Sub. Machine Gun 3483 | -10/Subcaves | Visited Clippyterm 3490 | -10/Subcaves | Learned location of Section 7 (-2) 3564 | -10/Subcaves | A swath of the cavern ceiling suddenly collapsed 3973 | -10/Subcaves | Ambushed by Subdwellers from Twisted Machinery 4994 | -10/Subcaves | Visited 4L-MR0's lab 5035 | -10/Subcaves | Found Rainbow Chip 6186 | -10/Subcaves | Discovered new exit (range 16) 6515 | -10/Subcaves | Build established: Hauler-Mutant 7353 | -10/Subcaves | Core integrity fell below 50% 7951 | -10/Subcaves | Entered Recycling 9788 | -9/Recycling | Discovered new exit (range 9) 12408 | -9/Recycling | Scanned before Scraplab entrance 12464 | -9/Recycling | Entered Scraplab 12519 | -9/Recycling | Discovered new exit (range 3) 12532 | -9/Recycling | System corruption reached 10% 12534 | -9/Recycling | Entered Scraptown 12534 | -9/Scraptown | System corruption cleaned by C-Scrubber 13008 | -9/Scraptown | Heard Great Nut preacher, LISTEN AND RECITE! 13490 | -9/Scraptown | Visited The Evicted 13558 | -9/Scraptown | Visited UFD Registry 13558 | -9/Scraptown | Registered with UFD as "Bioninja" 13680 | -9/Scraptown | Visited Chapter 10 13739 | -9/Scraptown | Visited Observation Area 13826 | -9/Scraptown | Visited Junk Repository 14087 | -9/Scraptown | Visited Science Guys 14138 | -9/Scraptown | Visited Derelict Rescue Squad 14233 | -9/Scraptown | Visited LU-1G1's Boring Crew 14292 | -9/Scraptown | Visited Scrap Suit Storage 14355 | -9/Scraptown | Visited Curators Association 14419 | -9/Scraptown | Visited Cartography Club 14901 | -9/Scraptown | Delivered Scrap Shield to a Scientist 15481 | -9/Scraptown | Found DRS Beacon 16805 | -9/Scraptown | Learned location of Extension (-6) 16805 | -9/Scraptown | Learned location of Hub_04(d) (-6) 16805 | -9/Scraptown | Learned location of Armory (-4) 16805 | -9/Scraptown | Learned 20 Factory zone layouts 16805 | -9/Scraptown | Learned 4 Access zone layouts 16805 | -9/Scraptown | Learned 12 Lower Caves zone layouts 16805 | -9/Scraptown | Learned 16 Lower Caves zone layouts 16805 | -9/Scraptown | Learned 24 Proximity Caves zone layouts 16805 | -9/Scraptown | Learned location of 2 exits from Factory 16805 | -9/Scraptown | Learned location of 2 exits from Research 16805 | -9/Scraptown | Learned location of 1 exit from Proximity Caves 16805 | -9/Scraptown | Identified exit to Factory 16833 | -9/Scraptown | Found Deep Structural Scanner 17996 | -9/Scraptown | Visited Symbiants 18143 | -9/Scraptown | Visited Bundlers 18395 | -9/Scraptown | Visited Spacefarers 18628 | -9/Scraptown | Visited Assassins FH 19857 | -9/Scraptown | Guru changed UFD alias to "Wireninja" 21089 | -9/Scraptown | Visited IN-MT5's Study 22365 | -9/Scraptown | Found Scrap Suit 26011 | -9/Scraptown | Entered Factory 26011 | -6/Factory | Evolved 8 slots: Propulsion x4, Utility x4 26012 | -6/Factory | Identified exit to Lower Caves 26012 | -6/Factory | Identified exit to Factory 26013 | -6/Factory | Identified exit to Extension 26195 | -6/Factory | Self-destructed Last Messages --------------- 26160_ Sneak attack on O-24 Administrator. 26160_ Destroyed Imp. Hover Unit. 26160_ O-24 Administrator destroyed. 26161_ K-01 Serf pushes H-66 Slayer. 26164_ Acquired System Shield. 26165_ K-01 Serf pushes H-66 Slayer. 26166_ Acquired Hacking Suite. 26166_ K-01 Serf pushes H-66 Slayer. 26176_ O-16 Technician: "IFF HANDSHAKE FAILED. SECURING TERMINAL." 26179_ R-10 Processor collects Lgt. Deuterium Engine. 26180_ O-16 Technician uses terminal to summon reinforcements. 26180_ ALERT: Hostiles spotted, dispatching reinforcements to Terminal F015. 26180_ O-16 Technician locks terminal. 26182_ Destroyed Hover Unit. 26183_ Nuclear Pulse Thruster destroyed. 26190_ Destroyed Datajack. 26190_ O-16 Technician destroyed. 26193_ Acquired 19 matter. 26194_ Lgt. Treads destroyed. 26194_ Greatsword destroyed. Map ----- +----------------------------------------------------+ | ?????????????????????????????????????????????????? | | ?????????????????????????????????????????????????? | | ?????????????????????????????????????????????????? | | ?????????????????????????????????????????????????? | | ?????????????????????????????????????????????????? | | ?????????????????????????????????????????????????? | | ?????????????????????????????????????????????????? | | ?????????????????????????????????????????????????? | | ?????????????????????????????????????????????????? | | ???????????R?????????????????????????????????????? | | ?????????????????????????????????????????????????? | | ?????????????????????????????????????????????????? | | ?????????????????????????????????????????????????? | | ?????????????????????????????????????????????????? | | ?????????????????????????????????????????????????? | | ?????????????????????????????????????????????????? | | ???????????????????????????+?????????????????????? | | ??????????????????????????? ????#+#??????????????? | | ??????????????????????????# #??? ??????????????? | | ?????????????? ??????????# #??? ??????????????? | | ?????????????? ??????????# #??? ??????????????? | | ????????????? #?????????# #??? ??????????????? | | ??????###????" #?????????# #??? /??????????????? | | ??????# ???" #??######## #???# #??????????????? | | ??????# ??" #??# # #???# #??????????????? | | """ + #??# "@# ##### #??????????????? | | """ # """ #??# ] T + #??????????????? | | # """ #??# "*# #??????????????# | | # """ #### # ############## # | | ###+### #### + # | | ??# ###########+### # | | ######+#### ########## ?+ | | # # # # ?# # | | # " " # # ][! """# ?# R # | | # ""G"" # # [ &"""# ""?#########%! # | | # # # !|"""# ""??########/######## # | | ########### #|!!!! ""# "T??#### #?? | | # # | !! ""# ""??#### #?? | | """ """ # # !!& /|!# "" ##### #?? | | """ """ # # ]"Y"!# ##### #?? | | """ """ # # """ ########## #?? | | # ###+############### #?? | | """ """ # ##### #?? | | """ """ + ##### #?? | | """ """ # ##### #?? | | # ##### # # | | """ """ # ##### # # | | """ """ ############### ##### # # | | """ """ ##### # ######"####/###### # | | ##### # ^ | +----------------------------------------------------+ Best States ------------- Heat Dissipation 56 Energy Generation 12 Energy Capacity 265 Matter Stores 300 Matter Capacity 300 Sight Range 21 Terrain Scan Density 10 Additional Mass Support 9 Armor Coverage 800 Evasion (%) 64 Targeting Accuracy 5 Recoil Reduction 2 Offensive Hacking 10 Authchip Count 8 Item Schematics ----------------- None Robot Schematics ------------------ None Fabricated ------------ Nothing Alien Tech Used ----------------- None Achievements -------------- None Challenges ------------ None Game ------ Seed DrainedAerolevGenerator Manual? 0 Play Time 01:03:26 Cumulative 46.5 hours Start 2024.11.10 @ 16:27:51 End 2024.11.10 @ 17:55:55 Sessions 13 Manual Loads 0 Difficulty Rogue Special Mode None Game No. 89 Rogue 89 Adventurer 0 Explorer 0 Win Type - Total 0 Types 0/0/0/0/0/0/0/0/0 Lore% 36 Gallery% 30 Achievement% 32 Wizard Run 0 Options --------- Layout 0 ASCII 0 Keyboard 0 Movement Mouse Keybinds 0 Fullscreen 1 Font 24/Smallcaps Map View 183x50 Zoom Use 68% Tactical HUD 1 Map Filters NONE Filters NONE Steam 1 RUN: a7c44e11-a2ac-4ad9-a5d2-12a6af7efa8b